bitfinex/quotes_BTCUSD_20220201
["timestamp","ask_amount","ask_price","bid_price","bid_amount"]
[1643716770194,0.01968717,38493.0,38492.0,0.69573717]
[1643716771231,0.01968717,38493.0,38492.0,0.79314515]
[1643716774128,0.01968717,38493.0,38492.0,0.69573717]
[1643716775084,0.07218717,38493.0,38492.0,0.69573717]
[1643716775485,0.51810934,38493.0,38492.0,0.69573717]
[1643716775884,0.25,38492.0,38481.0,0.02099973]
[1643716776087,0.29747772,38486.0,38481.0,0.02099973]
[1643716776386,0.10099109,38484.0,38481.0,0.04086139]
[1643716776584,0.15349109,38484.0,38481.0,0.01986166]
[1643716776985,0.45401049,38484.0,38481.0,0.01986166]
[1643716777186,0.52507049,38484.0,38481.0,0.01986166]
[1643716777385,0.57507049,38484.0,38481.0,0.01986166]
[1643716777786,0.77958,38483.0,38481.0,0.01986166]
[1643716777987,0.0525,38482.0,38481.0,0.01986166]
[1643716778185,0.83208,38482.0,38481.0,0.01986166]
[1643716778740,0.09064016,38474.0,38472.0,0.0918168]
[1643716778939,0.0525,38474.0,38472.0,0.0918168]
[1643716779433,0.0525,38474.0,38470.0,0.064993]
[1643716780335,0.07984114,38473.0,38470.0,0.064993]
[1643716780734,0.0525,38474.0,38470.0,0.064993]
[1643716781238,0.05416539,38474.0,38471.0,0.064989]
[1643716782135,0.0525,38474.0,38471.0,0.064989]
[1643716782335,0.0525,38474.0,38470.0,0.064993]
[1643716782581,0.0525,38474.0,38471.0,0.06499]
[1643716782582,0.05416539,38474.0,38471.0,0.06499]
[1643716783379,0.0525,38474.0,38471.0,0.06499]
[1643716783580,0.05416539,38474.0,38471.0,0.06499]
[1643716783982,0.05416539,38474.0,38471.0,0.14690876]
[1643716784380,0.05416539,38474.0,38471.0,0.06499]
[1643716784582,0.0525,38474.0,38470.0,0.064993]
[1643716784783,0.05416539,38474.0,38470.0,0.064993]
[1643716785182,0.05416539,38474.0,38471.0,0.06499]
[1643716785781,0.0525,38474.0,38471.0,0.06499]
[1643716785981,0.05416539,38474.0,38471.0,0.06499]
[1643716787026,0.0525,38474.0,38471.0,0.06499]
[1643716787227,0.05416539,38474.0,38471.0,0.06499]
[1643716787628,0.05416539,38474.0,38470.0,0.064993]
[1643716787629,0.11539906,38473.0,38470.0,0.064993]
[1643716787829,0.05,38473.0,38470.0,0.064993]
[1643716788228,0.0525,38474.0,38471.0,0.064987]
[1643716788429,0.00166539,38473.0,38471.0,0.064987]
[1643716789431,0.0525,38474.0,38471.0,0.064987]
[1643716789631,0.05416539,38474.0,38471.0,0.064987]
[1643716790074,0.00166539,38474.0,38471.0,0.41541546]
[1643716790676,0.0525,38481.0,38474.0,0.064982]
[1643716790875,0.0525,38481.0,38476.0,0.1670322]
[1643716790876,0.04916058,38481.0,38476.0,0.1670322]
[1643716791075,0.91118524,38482.0,38476.0,0.1670322]
[1643716792180,0.91118524,38482.0,38476.0,0.1660322]
[1643716792377,0.96118524,38482.0,38476.0,0.1660322]
[1643716792978,0.91118524,38482.0,38476.0,0.1660322]
[1643716793179,0.91283394,38482.0,38477.0,0.00170252]
[1643716793730,1.01486585,38482.0,38477.0,0.00170252]
[1643716794126,1.06321715,38482.0,38476.0,0.1660322]
[1643716794326,1.06321715,38482.0,38478.0,0.00170251]
[1643716794531,1.06486587,38482.0,38478.0,0.00170251]
[1643716794727,1.06486587,38482.0,38478.0,0.06667851]
[1643716795326,1.06486587,38482.0,38478.0,0.064976]
[1643716795527,0.96118524,38482.0,38478.0,0.1316555]
[1643716795730,0.96283398,38482.0,38478.0,0.1316555]
[1643716796529,0.1525,38481.0,38478.0,0.0017025]
[1643716796728,0.2025,38481.0,38478.0,0.0017025]
[1643716797329,0.6558,38479.0,38478.0,0.0017025]
[1643716797587,0.7583,38479.0,38478.0,0.0017025]
[1643716797786,0.13000391,38476.0,38468.0,0.10081128]
[1643716797986,0.15141828,38470.0,38468.0,0.10081128]
[1643716798288,0.0525,38469.0,38463.0,0.129997]
[1643716798488,0.0525,38469.0,38462.0,0.07045455]
[1643716798889,0.40299128,38467.0,38462.0,0.07045455]
[1643716799190,0.0525,38466.0,38464.0,0.00087838]
[1643716799388,0.13455615,38465.0,38464.0,0.00087838]
[1643716799588,0.18705615,38465.0,38464.0,0.00087838]
[1643716799988,0.28544833,38465.0,38464.0,0.00087838]
[1643716800188,0.28544833,38465.0,38462.0,0.05591716]
[1643716800389,0.33544833,38465.0,38463.0,0.0008784]
[1643716800892,0.30207277,38465.0,38463.0,0.0008784]
[1643716801529,0.165022,38464.0,38462.0,0.05591716]
[1643716801733,0.27264957,38463.0,38462.0,0.05591716]
[1643716801928,0.35657744,38463.0,38462.0,0.05591716]
[1643716802128,0.40657744,38463.0,38462.0,0.05965578]
[1643716802528,0.50657744,38463.0,38462.0,0.05965578]
[1643716802732,0.35,38462.0,38452.0,0.0011]
[1643716802932,0.6558,38454.0,38452.0,0.0011]
[1643716803129,0.0525,38453.0,38452.0,0.0011]
[1643716804128,0.0523,38453.0,38452.0,0.0011]
[1643716804730,0.26852987,38453.0,38452.0,0.0011]
[1643716805787,0.0523,38453.0,38452.0,0.0011]
[1643716807184,0.0523,38453.0,38451.0,0.00169949]
[1643716807185,0.0523,38453.0,38448.0,0.09704191]
[1643716808287,0.0523,38453.0,38448.0,0.21207191]
[1643716808486,0.0523,38453.0,38449.0,0.23422318]
[1643716808735,0.0523,38453.0,38448.0,0.34212291]
[1643716808931,0.0523,38453.0,38449.0,0.0008744]
[1643716809330,0.03876622,38451.0,38449.0,0.0008744]
[1643716809532,0.03876622,38451.0,38449.0,0.0658924]
[1643716809932,0.03876622,38451.0,38449.0,0.195061]
[1643716810135,0.03876622,38451.0,38450.0,1.001516]
[1643716810330,0.03876622,38451.0,38450.0,1.051516]
[1643716810534,0.03876622,38451.0,38450.0,1.701516]
[1643716810535,6.22e-06,38451.0,38450.0,1.701516]
[1643716810735,0.77958,38463.0,38450.0,1.701516]
[1643716810935,0.77458,38463.0,38453.0,0.130005]
[1643716811134,0.77458,38463.0,38456.0,0.194994]
[1643716811333,0.77122907,38463.0,38457.0,0.351516]
[1643716811535,0.77122907,38463.0,38456.0,0.194994]
[1643716811736,0.15550574,38461.0,38458.0,0.09832652]
[1643716813078,0.15550574,38461.0,38458.0,0.16332552]
[1643716813679,0.21891698,38469.0,38458.0,0.16332552]
[1643716813680,0.00164919,38463.0,38458.0,0.16332552]
[1643716814279,0.00164919,38463.0,38459.0,0.195008]
[1643716814478,0.00164919,38463.0,38459.0,0.54877042]
[1643716814781,0.00164926,38463.0,38460.0,0.065007]
[1643716815384,0.00164926,38463.0,38461.0,0.351516]
[1643716815580,0.00164926,38463.0,38461.0,0.58829353]
[1643716815880,0.3601,38476.0,38465.0,0.064993]
[1643716816239,0.00532273,38470.0,38468.0,0.064989]
[1643716816434,0.00532273,38470.0,38469.0,0.96090536]
[1643716816834,0.00532273,38470.0,38469.0,0.65938936]
[1643716817033,0.22811502,38482.0,38469.0,1.09849293]
[1643716817234,0.22811502,38482.0,38472.0,0.064981]
[1643716817433,0.22811502,38482.0,38472.0,0.28230955]
[1643716817633,0.52246211,38483.0,38472.0,0.28628155]
[1643716817833,0.11067846,38483.0,38472.0,0.33628155]
[1643716818233,0.11067846,38483.0,38474.0,0.064981]
[1643716818434,0.00082516,38478.0,38475.0,0.10494012]
[1643716819233,0.00082516,38478.0,38475.0,0.16991312]
[1643716819434,0.11067846,38483.0,38475.0,0.29986412]
[1643716819634,0.11067846,38483.0,38476.0,0.064975]
[1643716819635,0.00082516,38478.0,38476.0,0.064975]
[1643716820588,0.11067846,38483.0,38476.0,0.064975]
[1643716820984,0.00164992,38479.0,38476.0,0.064975]
[1643716821883,0.00744056,38496.0,38478.0,0.129937]
[1643716822083,0.00424861,38485.0,38478.0,0.129937]
[1643716822283,0.00424861,38485.0,38480.0,0.064969]
[1643716822483,0.00424861,38485.0,38483.0,0.10495377]
[1643716822885,0.1597266,38485.0,38483.0,0.10495377]
[1643716823084,0.15547799,38485.0,38482.0,0.064969]
[1643716824962,0.15547799,38485.0,38482.0,0.129945]
[1643716825360,0.15547799,38485.0,38482.0,0.064969]
[1643716825563,0.15547799,38485.0,38480.0,0.129946]
[1643716825760,0.15547799,38485.0,38481.0,0.00088173]
[1643716826760,0.15547799,38485.0,38480.0,0.129946]
[1643716826960,0.15547799,38485.0,38481.0,0.00170178]
[1643716827785,0.15547799,38485.0,38480.0,0.129946]
[1643716827986,0.15547799,38485.0,38481.0,0.00170178]
[1643716828185,0.37699243,38486.0,38481.0,0.00170178]
[1643716828386,0.00163984,38487.0,38481.0,0.00170178]
[1643716828602,0.00163984,38487.0,38482.0,0.064972]
[1643716828988,0.35,38490.0,38482.0,0.064972]
[1643716829386,0.0016399,38487.0,38482.0,0.064972]
[1643716829588,0.0016399,38487.0,38486.0,0.09944607]
[1643716830189,0.002,38488.0,38486.0,0.09944607]
[1643716830590,0.00363992,38488.0,38486.0,0.09944607]
[1643716831433,0.002,38488.0,38486.0,0.09944607]
[1643716832034,0.002,38488.0,38485.0,0.05]
[1643716833035,0.08792306,38487.0,38484.0,0.064965]
[1643716833740,0.08792306,38487.0,38483.0,0.129929]
[1643716833936,0.08792306,38487.0,38480.0,0.129956]
[1643716833937,0.39123045,38483.0,38480.0,0.129956]
[1643716834136,0.0525,38482.0,38481.0,0.00170182]
[1643716834992,0.0525,38482.0,38480.0,0.129956]
[1643716835391,0.0525,38482.0,38480.0,0.13165781]
[1643716836292,0.0525,38482.0,38480.0,0.129956]
[1643716839840,0.0525,38482.0,38476.0,0.129958]
[1643716840039,0.0525,38482.0,38479.0,0.00170182]
[1643716841041,0.0525,38482.0,38478.0,0.064981]
[1643716841241,0.0525,38482.0,38479.0,0.00170183]
[1643716842243,0.0525,38482.0,38478.0,0.07934393]
[1643716842487,0.0525,38482.0,38479.0,0.00170183]
[1643716843090,0.08597767,38481.0,38479.0,0.00170183]
[1643716843491,0.22707927,38483.0,38478.0,0.07934393]
[1643716843690,0.22707927,38483.0,38478.0,0.08104577]
[1643716844290,0.22707927,38483.0,38478.0,0.00170184]
[1643716844691,0.22707927,38483.0,38476.0,0.06498]
[1643716844893,0.22707927,38483.0,38479.0,0.00170183]
[1643716845494,0.31295913,38483.0,38479.0,0.08065719]
[1643716845794,0.08587986,38483.0,38479.0,0.14393436]
[1643716846093,0.16600001,38485.0,38479.0,0.14563618]
[1643716846744,0.53194548,38483.0,38479.0,0.08065718]
[1643716847138,0.53194548,38483.0,38479.0,0.07895536]
[1643716847340,0.53194548,38483.0,38479.0,0.08065718]
[1643716847539,0.09088594,38482.0,38479.0,0.08065718]
[1643716847739,0.53194548,38483.0,38479.0,0.08065718]
[1643716847939,0.21575737,38483.0,38479.0,0.08065718]
[1643716848342,0.21575737,38483.0,38476.0,0.064983]
[1643716848540,0.21575737,38483.0,38479.0,0.00170182]
[1643716848840,0.21575737,38483.0,38479.0,0.06668082]
[1643716849245,0.05,38483.0,38479.0,0.06668082]
[1643716849442,0.05,38483.0,38482.0,0.09224535]
[1643716849642,0.21600001,38485.0,38482.0,0.09224535]
[1643716850083,0.48193258,38485.0,38479.0,0.06668082]
[1643716850684,0.48193258,38485.0,38479.0,0.064979]
[1643716850884,0.48193258,38485.0,38480.0,0.0017018]
[1643716851084,0.21600001,38485.0,38480.0,0.0017018]
[1643716851287,0.05,38485.0,38484.0,0.01064541]
[1643716851488,0.1025,38485.0,38484.0,0.01064541]
[1643716851685,0.0525,38485.0,38484.0,0.01064541]
[1643716851888,0.0525,38485.0,38482.0,0.01064541]
[1643716852486,0.20446014,38485.0,38482.0,0.01064541]
[1643716852885,0.20446014,38485.0,38482.0,0.1091597]
[1643716853084,0.0525,38485.0,38482.0,0.1091597]
[1643716853287,0.0525,38485.0,38479.0,0.01064541]
[1643716853485,0.0525,38485.0,38475.0,0.064983]
[1643716853744,0.0525,38485.0,38482.0,0.01064541]
[1643716854342,0.0525,38485.0,38475.0,0.22206544]
[1643716854645,0.0525,38485.0,38483.0,0.01064541]
[1643716854841,0.0525,38485.0,38482.0,0.07661051]
[1643716855242,0.0525,38485.0,38482.0,0.00170381]
[1643716855442,0.0525,38485.0,38482.0,0.01064541]
[1643716855642,0.0525,38485.0,38482.0,0.01234922]
[1643716856243,0.0525,38485.0,38482.0,0.07732922]
[1643716856643,0.0525,38485.0,38482.0,0.07562541]
[1643716856845,0.0525,38485.0,38482.0,0.07732922]
[1643716857046,0.0525,38485.0,38482.0,0.01234922]
[1643716857487,0.0525,38485.0,38484.0,0.01064541]
[1643716857887,0.0525,38485.0,38480.0,0.064983]
[1643716858087,0.0525,38485.0,38483.0,0.00138825]
[1643716858588,0.28601929,38485.0,38483.0,0.00138825]
[1643716858787,0.33601929,38485.0,38483.0,0.06636825]
[1643716859190,0.33601929,38485.0,38483.0,0.06498]
[1643716859392,0.1025,38485.0,38483.0,0.06498]
[1643716860790,0.1025,38485.0,38482.0,0.00138827]
[1643716861437,0.1025,38485.0,38482.0,0.01203368]
[1643716861638,0.1025,38485.0,38484.0,0.01064541]
[1643716861838,0.1025,38485.0,38482.0,0.00138829]
[1643716862038,0.1025,38485.0,38484.0,0.01064541]
[1643716862442,0.1035,38485.0,38484.0,0.01064541]
[1643716863840,0.1035,38485.0,38481.0,0.0842904]
[1643716864040,0.1035,38485.0,38484.0,0.01064541]
[1643716864440,0.1035,38485.0,38483.0,0.00145924]
[1643716865094,0.0535,38485.0,38481.0,0.09493581]
[1643716865290,0.0535,38485.0,38482.0,0.00145926]
[1643716866190,0.001,38485.0,38482.0,0.01210467]
[1643716866392,0.001,38485.0,38483.0,0.08223068]
[1643716867391,0.001,38485.0,38483.0,0.09287609]
[1643716867792,0.001,38485.0,38483.0,0.08223068]
[1643716869741,0.18624674,38484.0,38483.0,0.08223068]
[1643716870143,0.28624674,38484.0,38482.0,0.00144688]
[1643716870340,0.06498786,38483.0,38482.0,0.00144688]
[1643716871142,0.07999854,38482.0,38480.0,0.01873249]
[1643716871341,0.07999854,38482.0,38481.0,0.00144694]
[1643716871342,0.30998764,38482.0,38481.0,0.00144694]
[1643716871541,0.41248764,38482.0,38481.0,0.00144694]
[1643716872342,0.11067055,38478.0,38474.0,0.08103279]
[1643716872591,0.22816576,38478.0,38474.0,0.08103279]
[1643716872796,0.1025,38478.0,38474.0,0.08103279]
[1643716873191,0.1025,38478.0,38475.0,0.01064541]
[1643716873394,0.1025,38478.0,38474.0,0.08103279]
[1643716873793,0.1025,38478.0,38475.0,0.01209176]
[1643716874393,0.1025,38478.0,38475.0,0.00144635]
[1643716874793,0.1025,38478.0,38474.0,0.08103279]
[1643716874999,0.1025,38478.0,38475.0,0.01209176]
[1643716875793,0.1025,38478.0,38475.0,0.00144635]
[1643716875993,0.1025,38478.0,38474.0,0.08103279]
[1643716876253,0.1025,38478.0,38475.0,0.00144635]
[1643716876445,0.38780981,38478.0,38475.0,0.01209176]
[1643716876644,0.1025,38478.0,38477.0,0.01064541]
[1643716877646,0.1025,38478.0,38476.0,0.0014465]
[1643716878051,0.35863931,38477.0,38476.0,0.0014465]
[1643716878348,0.51113931,38477.0,38474.0,0.08103279]
[1643716878547,0.51113931,38477.0,38475.0,0.00144654]
[1643716878548,0.1,38476.0,38475.0,0.00144654]
[1643716878846,0.2025,38476.0,38475.0,0.00144654]
[1643716879047,0.1025,38476.0,38475.0,0.00144654]
[1643716879447,0.0525,38476.0,38474.0,0.0916782]
[1643716879647,0.0525,38476.0,38474.0,0.09312477]
[1643716880698,0.0525,38476.0,38474.0,0.0916782]
[1643716881095,0.0525,38476.0,38473.0,0.00144655]
[1643716881896,0.0525,38476.0,38471.0,0.01064541]
[1643716882197,0.11749768,38476.0,38473.0,0.00144657]
[1643716882397,0.21749768,38476.0,38473.0,0.00144657]
[1643716882596,0.26605741,38475.0,38473.0,0.00144657]
[1643716882799,0.0525,38474.0,38473.0,0.00144657]
[1643716882996,0.32442694,38474.0,38473.0,0.00144657]
[1643716883199,0.06500672,38472.0,38470.0,0.08218607]
[1643716883398,0.0525,38471.0,38470.0,0.08218607]
[1643716883599,0.1025,38471.0,38470.0,0.08218607]
[1643716883849,0.1025,38471.0,38470.0,0.09283148]
[1643716884048,0.0525,38471.0,38470.0,0.09283148]
[1643716884851,0.1025,38471.0,38470.0,0.09283148]
[1643716885050,0.0525,38471.0,38470.0,0.09283148]
[1643716885854,0.05239146,38471.0,38470.0,0.09283148]
[1643716886451,0.05239146,38471.0,38470.0,0.08218607]
[1643716886651,0.05339146,38471.0,38470.0,0.08218607]
[1643716886851,0.17225219,38471.0,38470.0,0.08218607]
[1643716887051,0.22225219,38471.0,38470.0,0.08218607]
[1643716888091,0.10339146,38471.0,38470.0,0.08218607]
[1643716889292,0.05339146,38471.0,38470.0,0.08218607]
[1643716890694,0.05339146,38471.0,38470.0,0.09283148]
[1643716890893,0.05339146,38471.0,38470.0,0.08218607]
[1643716891340,0.10339146,38471.0,38470.0,0.08218607]
[1643716891740,0.10339146,38471.0,38470.0,0.09283148]
[1643716892140,0.05339146,38471.0,38470.0,0.09283148]
[1643716892341,0.10339146,38471.0,38470.0,0.09283148]
[1643716892640,0.10339146,38471.0,38470.0,0.08218607]
[1643716893041,0.10339146,38471.0,38470.0,0.09283148]
[1643716893442,0.10339146,38471.0,38470.0,0.08218607]
[1643716893643,0.05339146,38471.0,38470.0,0.08218607]
[1643716894240,0.05339146,38471.0,38470.0,0.09283148]
[1643716894846,0.05339146,38471.0,38467.0,0.08903957]
[1643716895092,0.0196916,38466.0,38456.0,0.195018]
[1643716895293,0.1,38459.0,38458.0,0.6384]
[1643716895489,0.1,38459.0,38458.0,0.401516]
[1643716896090,0.1,38459.0,38458.0,0.62285264]
[1643716896491,0.1,38459.0,38458.0,0.83534625]
[1643716897494,0.1,38459.0,38458.0,1.13534625]
[1643716901141,0.1,38459.0,38458.0,0.61400961]
[1643716901545,0.1,38459.0,38458.0,0.83207944]
[1643716905498,0.1,38459.0,38458.0,1.18207944]
[1643716906341,0.1,38459.0,38458.0,0.83207944]
[1643716907241,0.26963894,38468.0,38458.0,0.83207944]
[1643716907440,0.1,38459.0,38458.0,0.83056344]
[1643716907642,0.1,38459.0,38458.0,1.18207944]
[1643716907841,0.1,38459.0,38458.0,0.96400961]
[1643716908041,0.1,38459.0,38458.0,0.61400961]
[1643716908241,0.1,38459.0,38458.0,0.83014097]
[1643716908641,0.1,38459.0,38458.0,0.61400961]
[1643716908841,0.1,38459.0,38458.0,0.82879316]
[1643716911399,0.1,38459.0,38458.0,0.61400961]
[1643716911594,0.1,38459.0,38458.0,0.21249361]
[1643716911998,0.15338591,38459.0,38458.0,0.21249361]
[1643716912799,0.1,38459.0,38458.0,0.21249361]
[1643716913847,0.1,38459.0,38458.0,0.56400961]
[1643716914144,0.1,38459.0,38458.0,0.7859698]
[1643716914747,0.1,38459.0,38458.0,0.8359698]
[1643716915445,0.1,38459.0,38458.0,0.61400961]
[1643716915647,0.1,38459.0,38458.0,0.47620099]
[1643716915848,0.1,38459.0,38458.0,0.82771699]
[1643716916149,0.0525,38474.0,38458.0,0.82771699]
[1643716916150,0.001,38471.0,38459.0,0.05]
[1643716916348,0.001,38471.0,38470.0,0.14661408]
[1643716917152,0.001,38471.0,38470.0,0.25088426]
[1643716920994,0.001,38471.0,38470.0,0.24955226]
[1643716921259,0.00369826,38481.0,38472.0,0.06498]
[1643716921455,0.05,38483.0,38480.0,0.1]
[1643716921651,0.05,38484.0,38482.0,0.1]
[1643716921851,0.51967912,38484.0,38483.0,0.1]
[1643716922051,1.01117246,38484.0,38483.0,0.1]
[1643716922353,0.79780997,38484.0,38483.0,0.1]
[1643716922751,1.01224767,38484.0,38483.0,0.1]
[1643716923050,0.79780997,38484.0,38483.0,0.1]
[1643716923550,0.84780997,38484.0,38483.0,0.1]
[1643716923951,0.82964418,38484.0,38483.0,0.1]
[1643716924552,0.03183421,38484.0,38483.0,0.1]
[1643716924857,0.06652475,38485.0,38483.0,0.1]
[1643716925095,0.06497992,38485.0,38483.0,0.1]
[1643716925295,0.001,38486.0,38483.0,0.1]
[1643716925594,0.001,38486.0,38485.0,0.1]
[1643716925595,0.12733455,38486.0,38485.0,0.1]
[1643716926298,0.131542,38486.0,38485.0,0.1]
[1643716927300,0.181542,38486.0,38485.0,0.1]
[1643716927699,0.00675,38486.0,38485.0,0.1]
[1643716928752,0.15771722,38486.0,38485.0,0.1]
[1643716929545,0.20771722,38486.0,38485.0,0.1]
[1643716932047,0.41959418,38486.0,38485.0,0.1]
[1643716932499,0.20771722,38486.0,38485.0,0.1]
[1643716933303,0.4196672,38486.0,38485.0,0.1]
[1643716935311,0.4721672,38486.0,38485.0,0.1]
[1643716936108,0.26021722,38486.0,38485.0,0.1]
[1643716936560,0.47351792,38486.0,38485.0,0.1]
[1643716937360,0.26021722,38486.0,38485.0,0.1]
[1643716938462,0.50137473,38486.0,38485.0,0.1]
[1643716939566,0.26021722,38486.0,38485.0,0.1]
[1643716939995,0.25521722,38486.0,38485.0,0.1]
[1643716941295,0.47351068,38486.0,38485.0,0.1]
[1643716942295,0.25521722,38486.0,38485.0,0.1]
[1643716942496,0.46724026,38486.0,38485.0,0.1]
[1643716942896,0.25521722,38486.0,38485.0,0.1]
[1643716943849,0.20271722,38486.0,38485.0,0.1]
[1643716947597,0.33269222,38486.0,38485.0,0.1]
[1643716948802,0.54519687,38486.0,38485.0,0.1]
[1643716949000,0.33269222,38486.0,38485.0,0.1]
[1643716949202,0.05175,38486.0,38485.0,0.1]
[1643716956898,0.00675,38486.0,38485.0,0.1]
[1643716957098,0.00675,38486.0,38485.0,0.14528208]
[1643716958200,0.05675,38486.0,38485.0,0.14528208]
[1643716958753,0.05675,38486.0,38485.0,0.04528208]
[1643716958952,0.05675,38486.0,38485.0,0.1]
[1643716962353,0.00675,38486.0,38485.0,0.1]
[1643716962803,0.00675,38486.0,38485.0,0.75]
[1643716963001,0.00675,38486.0,38485.0,0.15]
[1643716963201,0.00675,38486.0,38485.0,0.1]
[1643716965702,0.05675,38486.0,38485.0,0.1]
[1643716970596,0.00675,38486.0,38485.0,0.1]
[1643716972199,0.05675,38486.0,38485.0,0.1]
[1643716974851,0.00675,38486.0,38485.0,0.1]
[1643716985797,0.00668169,38486.0,38485.0,0.1]
[1643716987900,0.00668169,38486.0,38485.0,0.15]
[1643716988100,0.00668169,38486.0,38485.0,0.501516]
[1643716988499,0.00154294,38487.0,38486.0,0.7]
[1643716988500,0.00082463,38487.0,38486.0,0.7]
[1643716988757,0.002,38495.0,38486.0,1.08179808]
[1643716988952,0.002,38495.0,38494.0,0.19643887]
[1643716990555,0.002,38495.0,38494.0,0.44088813]
[1643716990755,0.002,38495.0,38494.0,0.84240413]
[1643716992355,0.012,38499.0,38495.0,1.2]
[1643716992612,0.33126296,38506.0,38495.0,1.2]
[1643716992613,0.01903582,38507.0,38498.0,0.13028208]
[1643716992814,0.422,38512.0,38498.0,0.13028208]
[1643716992815,0.22689048,38517.0,38506.0,0.13028208]
[1643716993010,0.22689048,38517.0,38513.0,0.13028208]
[1643716993207,0.001,38517.0,38513.0,0.13028208]
[1643716993409,0.00823126,38514.0,38513.0,0.1]
[1643716994309,0.00323126,38514.0,38513.0,0.13028208]
[1643716994811,0.00323126,38514.0,38513.0,0.18028208]
[1643716995109,0.00323126,38514.0,38513.0,0.53179808]
[1643716995314,0.00323126,38514.0,38513.0,0.18028208]
[1643716995710,0.00323126,38514.0,38513.0,0.2110457]
[1643716995911,0.00323126,38514.0,38513.0,0.18076362]
[1643716996356,0.00323126,38514.0,38513.0,0.2110457]
[1643716996561,0.00323126,38514.0,38513.0,0.2610457]
[1643716996761,0.00323126,38514.0,38513.0,0.2110457]
[1643716997358,0.00323126,38514.0,38513.0,0.4610457]
[1643716997558,0.00323126,38514.0,38513.0,0.2110457]
[1643716998363,0.00323126,38514.0,38513.0,0.2610457]
[1643716998760,0.00323126,38514.0,38513.0,0.48891682]
[1643716998960,0.00323126,38514.0,38513.0,0.2610457]
[1643716999160,0.00323126,38514.0,38513.0,0.2110457]
[1643716999359,0.00323126,38514.0,38513.0,0.2610457]
[1643716999561,0.00323126,38514.0,38513.0,0.2110457]
[1643717000004,0.00115668,38515.0,38513.0,0.2110457]
[1643717000204,0.00115668,38515.0,38513.0,0.13028208]
[1643717000510,0.00115668,38515.0,38513.0,0.1]
[1643717000706,1.84459042,38516.0,38513.0,0.1]
[1643717001105,0.16971791,38514.0,38509.0,0.01826462]
[1643717001308,0.16971791,38510.0,38509.0,0.01826462]
[1643717001507,0.21971791,38510.0,38503.0,0.12987]
[1643717001707,0.1,38504.0,38503.0,0.12987]
[1643717002107,0.1,38504.0,38503.0,1.681386]
[1643717002506,0.1,38504.0,38503.0,0.481386]
[1643717003011,0.1,38504.0,38503.0,0.79411367]
[1643717003407,0.1,38504.0,38503.0,1.44411367]
[1643717003860,0.1,38504.0,38503.0,1.49411367]
[1643717004061,0.1,38504.0,38503.0,0.84411367]
[1643717004263,0.1,38504.0,38503.0,1.34411367]
[1643717004661,0.1,38504.0,38503.0,0.84411367]
[1643717005062,0.1,38504.0,38503.0,0.62515463]
[1643717006263,0.1,38504.0,38503.0,0.92515463]
[1643717006964,0.1,38504.0,38503.0,0.62515463]
[1643717007364,0.1,38504.0,38503.0,1.28958448]
[1643717007604,0.003,38516.0,38504.0,1.2]
[1643717007803,0.003,38516.0,38515.0,0.1]
[1643717011949,0.06793254,38516.0,38515.0,0.1]
[1643717012451,0.12043254,38516.0,38515.0,0.1]
[1643717013854,0.12043254,38516.0,38510.0,0.0212018]
[1643717013855,0.064942,38515.0,38510.0,0.0212018]
[1643717014054,0.064942,38515.0,38507.0,0.1]
[1643717014055,0.0525,38514.0,38507.0,0.1]
[1643717014254,0.0525,38514.0,38506.0,0.1]
[1643717014255,0.06495299,38511.0,38506.0,0.1]
[1643717014455,0.09962061,38507.0,38506.0,0.1]
[1643717014656,0.15212061,38507.0,38502.0,0.00149883]
[1643717014855,0.6626077,38503.0,38502.0,0.00149883]
[1643717015101,0.6626077,38503.0,38499.0,0.1]
[1643717015102,0.7151077,38503.0,38499.0,0.1]
[1643717015402,0.7151077,38503.0,38502.0,0.13028209]
[1643717015403,0.39278847,38503.0,38502.0,0.13028209]
[1643717015903,0.39278847,38503.0,38501.0,0.00149888]
[1643717016302,0.39278847,38503.0,38502.0,0.13028209]
[1643717017303,0.39278847,38503.0,38501.0,0.064954]
[1643717017503,0.1025,38503.0,38502.0,0.13028209]
[1643717017702,0.1025,38503.0,38501.0,0.064954]
[1643717017903,0.0525,38503.0,38501.0,0.064954]
[1643717018202,0.0525,38503.0,38502.0,0.13028209]
[1643717018608,0.0525,38503.0,38502.0,0.18028209]
[1643717020352,0.0525,38503.0,38502.0,0.13028209]
[1643717021358,0.42,38512.0,38502.0,0.39158904]
[1643717021555,0.42,38512.0,38511.0,0.1]
[1643717021754,0.47,38512.0,38511.0,0.1]
[1643717022354,0.05,38512.0,38510.0,0.10349803]
[1643717022610,0.05,38512.0,38511.0,0.1]
[1643717022809,0.59628754,38515.0,38511.0,0.1]
[1643717023914,0.59628754,38515.0,38513.0,0.1]
[1643717024714,0.28573698,38515.0,38513.0,0.1]
[1643717024913,0.05,38515.0,38513.0,0.1]
[1643717025112,0.003,38516.0,38513.0,0.1]
[1643717025916,0.24898641,38516.0,38513.0,0.1]
[1643717026115,0.37885573,38516.0,38512.0,0.064932]
[1643717026350,0.0525,38515.0,38512.0,0.064932]
[1643717026556,0.1025,38515.0,38509.0,0.129856]
[1643717026749,0.2025,38515.0,38507.0,0.1]
[1643717026949,0.2025,38515.0,38507.0,0.12018098]
[1643717027149,0.2025,38515.0,38507.0,0.1]
[1643717027350,0.064942,38514.0,38507.0,0.1]
[1643717027550,0.0525,38513.0,38507.0,0.1]
[1643717028157,0.11744138,38513.0,38507.0,0.1]
[1643717028553,0.21709138,38513.0,38507.0,0.1]
[1643717028753,0.21709138,38513.0,38502.0,0.03176936]
[1643717028754,0.2,38506.0,38502.0,0.03176936]
[1643717028952,0.38412159,38503.0,38502.0,0.00148727]
[1643717029155,0.43662159,38503.0,38502.0,0.00148727]
[1643717029353,0.27221791,38503.0,38502.0,0.10448624]
[1643717029553,0.27221791,38503.0,38502.0,0.10299897]
[1643717030207,0.54153984,38503.0,38501.0,0.00148732]
[1643717030808,0.27221791,38503.0,38500.0,0.064955]
[1643717031006,0.16971791,38501.0,38500.0,0.0664423]
[1643717031308,0.22221791,38501.0,38500.0,0.0664423]
[1643717031907,0.22221791,38501.0,38500.0,0.064955]
[1643717033110,0.22221791,38501.0,38499.0,0.10018536]
[1643717033309,0.22221791,38501.0,38499.0,0.00148736]